[Event "January 9 Late 2024"]
[Site "https://www.chess.com"]
[Date "2024.01.09"]
[Round "5"]
[White "Rustemov, Alexander"]
[Black "Dubnevych, Maksym"]
[Result "1/2-1/2"]
[Board "56"]
[TimeControl "180+1"]
[WhiteFideId "4119002"]
[BlackFideId "14184001"]
[WhiteElo "2821"]
[BlackElo "2547"]
[WhiteTeam "RUS"]
[BlackTeam "UKR"]
[WhiteClock "0:00:06"]
[BlackClock "0:00:04"]

1. d4 {[%clk 0:03:00]}  Nf6 {[%clk 0:02:59]} 2. c4 {[%clk 0:03:00]}  e6 {[%clk 0:02:59]} 3. Nf3 {[%clk 0:03:00]}  Bb4+ {[%clk 0:02:58]} 4. Bd2 {[%clk 0:03:00]}  Qe7 {[%clk 0:02:56]} 5. g3 {[%clk 0:03:00]}  Nc6 {[%clk 0:02:51]} 6. Nc3 {[%clk 0:03:00]}  d6 {[%clk 0:02:48]} 7. d5 {[%clk 0:02:55]}  exd5 {[%clk 0:02:41]} 8. cxd5 {[%clk 0:02:50]}  Ne5 {[%clk 0:02:19]} 9. Nxe5 {[%clk 0:02:44]}  dxe5 {[%clk 0:02:12]} 10. Bg2 {[%clk 0:02:40]}  O-O {[%clk 0:02:10]} 11. O-O {[%clk 0:02:40]}  Rd8 {[%clk 0:02:09]} 12. Bg5 {[%clk 0:02:26]}  h6 {[%clk 0:02:04]} 13. Bxf6 {[%clk 0:02:26]}  Qxf6 {[%clk 0:02:05]} 14. Qb3 {[%clk 0:02:25]}  Bf8 {[%clk 0:01:59]} 15. Rac1 {[%clk 0:02:23]}  Qb6 {[%clk 0:01:51]} 16. Qxb6 {[%clk 0:02:04]}  cxb6 {[%clk 0:01:52]} 17. a3 {[%clk 0:01:29]}  Bd7 {[%clk 0:01:49]} 18. Rfd1 {[%clk 0:01:23]}  Rac8 {[%clk 0:01:47]} 19. e3 {[%clk 0:01:06]}  a6 {[%clk 0:01:32]} 20. d6 {[%clk 0:00:57]}  Bc6 {[%clk 0:01:28]} 21. Bh3 {[%clk 0:00:49]}  Bd7 {[%clk 0:01:14]} 22. Bg2 {[%clk 0:00:42]}  Bc6 {[%clk 0:01:14]} 23. Bxc6 {[%clk 0:00:38]}  Rxc6 {[%clk 0:01:13]} 24. d7 {[%clk 0:00:36]}  Rc7 {[%clk 0:01:05]} 25. Na4 {[%clk 0:00:33]}  Rcxd7 {[%clk 0:00:46]} 26. Rxd7 {[%clk 0:00:32]}  Rxd7 {[%clk 0:00:47]} 27. Nxb6 {[%clk 0:00:32]}  Rd2 {[%clk 0:00:46]} 28. Nc4 {[%clk 0:00:32]}  Rd5 {[%clk 0:00:45]} 29. Rc2 {[%clk 0:00:11]}  e4 {[%clk 0:00:41]} 30. Nd2 {[%clk 0:00:11]}  f5 {[%clk 0:00:41]} 31. Kf1 {[%clk 0:00:11]}  Be7 {[%clk 0:00:26]} 32. Ke2 {[%clk 0:00:11]}  Bf6 {[%clk 0:00:26]} 33. b3 {[%clk 0:00:12]}  Rd7 {[%clk 0:00:16]} 34. Rc5 {[%clk 0:00:10]}  g6 {[%clk 0:00:14]} 35. a4 {[%clk 0:00:10]}  Kf7 {[%clk 0:00:14]} 36. h3 {[%clk 0:00:11]}  Ke6 {[%clk 0:00:15]} 37. g4 {[%clk 0:00:11]}  Be7 {[%clk 0:00:10]} 38. Rc8 {[%clk 0:00:11]}  Bb4 {[%clk 0:00:09]} 39. Nf1 {[%clk 0:00:08]}  Rd3 {[%clk 0:00:06]} 40. Rb8 {[%clk 0:00:06]}  Rxb3 {[%clk 0:00:06]} 41. Rxb7 {[%clk 0:00:06]}  Rb2+ {[%clk 0:00:07]} 42. Kd1 {[%clk 0:00:05]}  Kd5 {[%clk 0:00:05]} 43. gxf5 {[%clk 0:00:05]}  gxf5 {[%clk 0:00:04]} 44. Ng3 {[%clk 0:00:05]}  Kc4 {[%clk 0:00:04]} 45. Nxf5 {[%clk 0:00:05]}  Rd2+ {[%clk 0:00:03]} 46. Kc1 {[%clk 0:00:05]}  Rxf2 {[%clk 0:00:04]} 47. Rc7+ {[%clk 0:00:04]}  Kd3 {[%clk 0:00:03]} 48. Rd7+ {[%clk 0:00:04]}  Kc3 {[%clk 0:00:04]} 49. Rc7+ {[%clk 0:00:05]}  Kd3 {[%clk 0:00:04]} 50. Rd7+ {[%clk 0:00:05]}  Kc3 {[%clk 0:00:04]} 51. Rc7+ {[%clk 0:00:06]}  Kd3 {[%clk 0:00:04]} 1/2-1/2

[Event "January 9 Late 2024"]
[Site "https://www.chess.com"]
[Date "2024.01.10"]
[Round "5"]
[White "Velikanov, Alexander"]
[Black "Otero Marino, Alain"]
[Result "1-0"]
[Board "57"]
[TimeControl "180+1"]
[WhiteFideId "2039290"]
[BlackFideId "3524876"]
[WhiteElo "2803"]
[BlackElo "2529"]
[WhiteTeam "USA"]
[BlackTeam "CUB"]
[WhiteClock "0:00:44"]
[BlackClock "0:01:39"]

1. e4 {[%clk 0:03:00]}  e6 {[%clk 0:02:59]} 2. d4 {[%clk 0:03:00]}  d5 {[%clk 0:02:59]} 3. exd5 {[%clk 0:03:01]}  exd5 {[%clk 0:02:59]} 4. h3 {[%clk 0:03:01]}  Bd6 {[%clk 0:02:59]} 5. c4 {[%clk 0:02:59]}  c6 {[%clk 0:02:59]} 6. c5 {[%clk 0:02:58]}  Bc7 {[%clk 0:02:59]} 7. Qc2 {[%clk 0:02:59]}  Ne7 {[%clk 0:02:59]} 8. Bd3 {[%clk 0:02:57]}  g6 {[%clk 0:02:56]} 9. Bg5 {[%clk 0:02:53]}  O-O {[%clk 0:02:55]} 10. Nf3 {[%clk 0:02:53]}  f6 {[%clk 0:02:55]} 11. Bh6 {[%clk 0:02:53]}  Rf7 {[%clk 0:02:52]} 12. O-O {[%clk 0:02:52]}  Bf5 {[%clk 0:02:52]} 13. Nc3 {[%clk 0:02:48]}  Nd7 {[%clk 0:02:48]} 14. Rfe1 {[%clk 0:02:46]}  Bxd3 {[%clk 0:02:48]} 15. Qxd3 {[%clk 0:02:47]}  Nf5 {[%clk 0:02:48]} 16. Bd2 {[%clk 0:02:46]}  Nf8 {[%clk 0:02:48]} 17. b4 {[%clk 0:02:42]}  a6 {[%clk 0:02:46]} 18. a4 {[%clk 0:02:41]}  Re7 {[%clk 0:02:46]} 19. g4 {[%clk 0:02:34]}  Ng7 {[%clk 0:02:45]} 20. b5 {[%clk 0:02:30]}  axb5 {[%clk 0:02:41]} 21. axb5 {[%clk 0:02:31]}  Rxa1 {[%clk 0:02:40]} 22. Rxa1 {[%clk 0:02:30]}  h5 {[%clk 0:02:36]} 23. b6 {[%clk 0:02:20]}  Bb8 {[%clk 0:02:34]} 24. Nh4 {[%clk 0:02:12]}  Qe8 {[%clk 0:02:27]} 25. Kg2 {[%clk 0:02:07]}  hxg4 {[%clk 0:02:20]} 26. hxg4 {[%clk 0:02:08]}  Kf7 {[%clk 0:02:19]} 27. Ra8 {[%clk 0:01:58]}  Qc8 {[%clk 0:02:11]} 28. Qf3 {[%clk 0:01:52]}  Re8 {[%clk 0:02:09]} 29. Bf4 {[%clk 0:01:25]}  Nd7 {[%clk 0:02:09]} 30. Qd3 {[%clk 0:01:15]}  f5 {[%clk 0:01:48]} 31. gxf5 {[%clk 0:01:11]}  gxf5 {[%clk 0:01:48]} 32. Nxf5 {[%clk 0:01:09]}  Ne6 {[%clk 0:01:47]} 33. Nd6+ {[%clk 0:01:08]}  Bxd6 {[%clk 0:01:43]} 34. Qh7+ {[%clk 0:01:07]}  Kf6 {[%clk 0:01:42]} 35. Rxc8 {[%clk 0:00:54]}  Nxf4+ {[%clk 0:01:40]} 36. Kf3 {[%clk 0:00:51]}  Rxc8 {[%clk 0:01:40]} 37. Qxd7 {[%clk 0:00:49]}  Rh8 {[%clk 0:01:39]} 38. Qxd6+ {[%clk 0:00:48]}  Ne6 {[%clk 0:01:37]} 39. Qe5+ {[%clk 0:00:48]}  Kf7 {[%clk 0:01:35]} 40. Qxh8 {[%clk 0:00:49]}  Ng5+ {[%clk 0:01:35]} 41. Ke2 {[%clk 0:00:49]}  Ne6 {[%clk 0:01:35]} 42. Qb8 {[%clk 0:00:44]}  Nxd4+ {[%clk 0:01:35]} 43. Kd3 {[%clk 0:00:44]}  Ne6 {[%clk 0:01:35]} 44. Qxb7+ {[%clk 0:00:45]}  Kf8 {[%clk 0:01:36]} 45. Qxc6 {[%clk 0:00:44]}  Ke7 {[%clk 0:01:36]} 46. Nxd5+ {[%clk 0:00:44]}  Kf7 {[%clk 0:01:36]} 47. Qd7+ {[%clk 0:00:45]}  Kg6 {[%clk 0:01:37]} 48. Qxe6+ {[%clk 0:00:45]}  Kg5 {[%clk 0:01:38]} 49. b7 {[%clk 0:00:44]}  Kh4 {[%clk 0:01:38]} 50. b8=Q {[%clk 0:00:44]}  Kg5 {[%clk 0:01:39]} 51. Qg3+ {[%clk 0:00:44]}  Kh5 {[%clk 0:01:39]} 52. Nf4# {[%clk 0:00:44]} 1-0

[Event "January 9 Late 2024"]
[Site "https://www.chess.com"]
[Date "2024.01.09"]
[Round "5"]
[White "Silva Lucena, Cristian"]
[Black "Badmatsyrenov, Oleg"]
[Result "0-1"]
[Board "59"]
[TimeControl "180+1"]
[WhiteFideId "2232588"]
[BlackFideId "24115762"]
[WhiteElo "2497"]
[BlackElo "2788"]
[WhiteTeam "ESP"]
[BlackTeam "FID"]
[WhiteClock "0:00:03"]
[BlackClock "0:00:09"]

1. Nf3 {[%clk 0:03:00]}  c5 {[%clk 0:02:51]} 2. e4 {[%clk 0:02:56]}  e6 {[%clk 0:02:51]} 3. d4 {[%clk 0:02:56]}  cxd4 {[%clk 0:02:52]} 4. Nxd4 {[%clk 0:02:57]}  a6 {[%clk 0:02:51]} 5. Nc3 {[%clk 0:02:57]}  b5 {[%clk 0:02:51]} 6. g3 {[%clk 0:02:58]}  Bb7 {[%clk 0:02:51]} 7. Bg2 {[%clk 0:02:58]}  Nf6 {[%clk 0:02:52]} 8. O-O {[%clk 0:02:57]}  b4 {[%clk 0:02:53]} 9. Nd5 {[%clk 0:02:57]}  exd5 {[%clk 0:02:52]} 10. exd5 {[%clk 0:02:47]}  Bc5 {[%clk 0:02:53]} 11. Re1+ {[%clk 0:02:43]}  Kf8 {[%clk 0:02:53]} 12. Nf5 {[%clk 0:02:35]}  d6 {[%clk 0:02:54]} 13. Qd2 {[%clk 0:02:05]}  h6 {[%clk 0:02:48]} 14. a3 {[%clk 0:01:46]}  a5 {[%clk 0:02:49]} 15. axb4 {[%clk 0:01:43]}  axb4 {[%clk 0:02:50]} 16. Rxa8 {[%clk 0:01:42]}  Bxa8 {[%clk 0:02:51]} 17. Qf4 {[%clk 0:01:39]}  Bb7 {[%clk 0:02:36]} 18. b3 {[%clk 0:01:26]}  Bc8 {[%clk 0:02:30]} 19. Ne7 {[%clk 0:01:17]}  Nbd7 {[%clk 0:02:21]} 20. Nc6 {[%clk 0:01:14]}  Qb6 {[%clk 0:02:21]} 21. Bb2 {[%clk 0:01:13]}  Bb7 {[%clk 0:01:07]} 22. h3 {[%clk 0:00:55]}  h5 {[%clk 0:00:39]} 23. Kh2 {[%clk 0:00:41]}  h4 {[%clk 0:00:35]} 24. g4 {[%clk 0:00:38]}  Bxf2 {[%clk 0:00:34]} 25. Qxd6+ {[%clk 0:00:23]}  Kg8 {[%clk 0:00:34]} 26. Ne7+ {[%clk 0:00:18]}  Kh7 {[%clk 0:00:35]} 27. Qxb6 {[%clk 0:00:18]}  Nxb6 {[%clk 0:00:30]} 28. Rd1 {[%clk 0:00:18]}  Bg3+ {[%clk 0:00:26]} 29. Kh1 {[%clk 0:00:18]}  Re8 {[%clk 0:00:22]} 30. Nf5 {[%clk 0:00:15]}  Ne4 {[%clk 0:00:13]} 31. Bxe4 {[%clk 0:00:10]}  Rxe4 {[%clk 0:00:14]} 32. Nxg3 {[%clk 0:00:05]}  hxg3 {[%clk 0:00:15]} 33. Kg2 {[%clk 0:00:05]}  Nxd5 {[%clk 0:00:14]} 34. Kxg3 {[%clk 0:00:06]}  Re3+ {[%clk 0:00:15]} 35. Kh4 {[%clk 0:00:05]}  f6 {[%clk 0:00:14]} 36. g5 {[%clk 0:00:04]}  Bc8 {[%clk 0:00:10]} 37. gxf6 {[%clk 0:00:03]}  gxf6 {[%clk 0:00:09]} 38. Rxd5 {[%clk 0:00:03]}  Rxh3# {[%clk 0:00:09]} 0-1

[Event "January 9 Late 2024"]
[Site "https://www.chess.com"]
[Date "2024.01.09"]
[Round "5"]
[White "Sokolovsky, Yahli"]
[Black "Bellissimo, Joseph F."]
[Result "0-1"]
[Board "60"]
[TimeControl "180+1"]
[WhiteFideId "2820242"]
[BlackFideId "2609843"]
[WhiteElo "2782"]
[BlackElo "2495"]
[WhiteTeam "ISR"]
[BlackTeam "CAN"]
[WhiteClock "0:01:42"]
[BlackClock "0:02:18"]

1. b3 {[%clk 0:03:00]}  e5 {[%clk 0:02:59]} 2. Bb2 {[%clk 0:03:00]}  Nc6 {[%clk 0:02:57]} 3. e3 {[%clk 0:03:01]}  d5 {[%clk 0:02:54]} 4. Nf3 {[%clk 0:03:00]}  f6 {[%clk 0:02:54]} 5. d4 {[%clk 0:02:59]}  e4 {[%clk 0:02:53]} 6. Nfd2 {[%clk 0:03:00]}  Nce7 {[%clk 0:02:53]} 7. c4 {[%clk 0:02:55]}  c6 {[%clk 0:02:52]} 8. Nc3 {[%clk 0:02:56]}  f5 {[%clk 0:02:46]} 9. f3 {[%clk 0:02:56]}  Nf6 {[%clk 0:02:44]} 10. Qc2 {[%clk 0:02:53]}  Be6 {[%clk 0:02:41]} 11. O-O-O {[%clk 0:02:53]}  g6 {[%clk 0:02:40]} 12. g4 {[%clk 0:02:51]}  Bh6 {[%clk 0:02:37]} 13. gxf5 {[%clk 0:02:34]}  Nxf5 {[%clk 0:02:36]} 14. Re1 {[%clk 0:02:10]}  Nxe3 {[%clk 0:02:36]} 15. Qb1 {[%clk 0:02:11]}  O-O {[%clk 0:02:27]} 16. Be2 {[%clk 0:01:53]}  exf3 {[%clk 0:02:18]} 17. Bxf3 {[%clk 0:01:42]}  Bf5 {[%clk 0:02:18]} 0-1

[Event "January 9 Late 2024"]
[Site "https://www.chess.com"]
[Date "2024.01.09"]
[Round "5"]
[White "Sowa, Ryan"]
[Black "Li, Tedric"]
[Result "1-0"]
[Board "62"]
[TimeControl "180+1"]
[WhiteFideId "30901693"]
[BlackFideId "3242897"]
[WhiteElo "2593"]
[BlackElo "2478"]
[WhiteTeam "USA"]
[BlackTeam "AUS"]
[WhiteClock "0:00:43"]
[BlackClock "0:00:02"]

1. Nf3 {[%clk 0:03:00]}  Nf6 {[%clk 0:02:59]} 2. b3 {[%clk 0:03:01]}  b6 {[%clk 0:02:57]} 3. Bb2 {[%clk 0:03:02]}  e6 {[%clk 0:02:57]} 4. g3 {[%clk 0:03:02]}  Bb7 {[%clk 0:02:57]} 5. Bg2 {[%clk 0:03:03]}  Be7 {[%clk 0:02:58]} 6. O-O {[%clk 0:03:04]}  O-O {[%clk 0:02:58]} 7. c4 {[%clk 0:03:04]}  c5 {[%clk 0:02:57]} 8. d4 {[%clk 0:03:04]}  cxd4 {[%clk 0:02:57]} 9. Qxd4 {[%clk 0:03:05]}  Nc6 {[%clk 0:02:56]} 10. Qd3 {[%clk 0:03:04]}  d6 {[%clk 0:02:56]} 11. Nc3 {[%clk 0:03:05]}  a6 {[%clk 0:02:56]} 12. e4 {[%clk 0:03:05]}  Qc7 {[%clk 0:02:56]} 13. Rfd1 {[%clk 0:03:06]}  Rfd8 {[%clk 0:02:56]} 14. Rac1 {[%clk 0:03:06]}  Rac8 {[%clk 0:02:51]} 15. Nd5 {[%clk 0:03:01]}  exd5 {[%clk 0:02:45]} 16. cxd5 {[%clk 0:03:01]}  Qd7 {[%clk 0:02:23]} 17. dxc6 {[%clk 0:03:00]}  Rxc6 {[%clk 0:02:24]} 18. Rxc6 {[%clk 0:02:54]}  Qxc6 {[%clk 0:02:25]} 19. Nd4 {[%clk 0:02:53]}  Qd7 {[%clk 0:02:23]} 20. Nf5 {[%clk 0:02:51]}  d5 {[%clk 0:01:59]} 21. e5 {[%clk 0:02:17]}  Ne8 {[%clk 0:01:54]} 22. Nxe7+ {[%clk 0:02:15]}  Qxe7 {[%clk 0:01:54]} 23. Bd4 {[%clk 0:02:13]}  b5 {[%clk 0:01:52]} 24. f4 {[%clk 0:02:13]}  Rc8 {[%clk 0:01:47]} 25. Bf2 {[%clk 0:02:13]}  Nc7 {[%clk 0:01:43]} 26. Rc1 {[%clk 0:02:11]}  Qd7 {[%clk 0:01:41]} 27. h3 {[%clk 0:02:07]}  g6 {[%clk 0:01:34]} 28. Kh2 {[%clk 0:02:06]}  h5 {[%clk 0:01:18]} 29. h4 {[%clk 0:02:05]}  Kh7 {[%clk 0:01:14]} 30. Bh3 {[%clk 0:02:02]}  Ne6 {[%clk 0:01:15]} 31. Rxc8 {[%clk 0:01:53]}  Qxc8 {[%clk 0:01:15]} 32. f5 {[%clk 0:01:53]}  gxf5 {[%clk 0:01:11]} 33. Bxf5+ {[%clk 0:01:51]}  Kg7 {[%clk 0:01:11]} 34. Qe2 {[%clk 0:01:43]}  Qc3 {[%clk 0:00:52]} 35. Qxh5 {[%clk 0:01:35]}  Qxe5 {[%clk 0:00:52]} 36. Qh7+ {[%clk 0:01:29]}  Kf8 {[%clk 0:00:51]} 37. Qh6+ {[%clk 0:01:14]}  Qg7 {[%clk 0:00:46]} 38. Qxg7+ {[%clk 0:01:13]}  Kxg7 {[%clk 0:00:45]} 39. g4 {[%clk 0:01:12]}  Kf6 {[%clk 0:00:42]} 40. Kg3 {[%clk 0:01:11]}  Ke5 {[%clk 0:00:42]} 41. h5 {[%clk 0:01:07]}  d4 {[%clk 0:00:42]} 42. h6 {[%clk 0:01:07]}  Kf6 {[%clk 0:00:28]} 43. Kh4 {[%clk 0:00:54]}  Bd5 {[%clk 0:00:19]} 44. Bb1 {[%clk 0:00:49]}  a5 {[%clk 0:00:18]} 45. g5+ {[%clk 0:00:44]}  Nxg5 {[%clk 0:00:09]} 46. Bxd4+ {[%clk 0:00:43]}  Ke6 {[%clk 0:00:02]} 47. Kxg5 {[%clk 0:00:43]} 1-0

[Event "January 9 Late 2024"]
[Site "https://www.chess.com"]
[Date "2024.01.09"]
[Round "5"]
[White "Kochiev, Ivan"]
[Black "Naroditsky, Daniel"]
[Result "0-1"]
[Board "63"]
[TimeControl "180+1"]
[WhiteFideId "2917890"]
[BlackFideId "2026961"]
[WhiteElo "2601"]
[BlackElo "3136"]
[WhiteTeam "BUL"]
[BlackTeam "USA"]
[WhiteClock "0:00:00"]
[BlackClock "0:00:45"]

1. e4 {[%clk 0:03:00]}  Nf6 {[%clk 0:03:00]} 2. e5 {[%clk 0:03:01]}  Nd5 {[%clk 0:03:01]} 3. d4 {[%clk 0:03:01]}  d6 {[%clk 0:03:01]} 4. c4 {[%clk 0:03:02]}  Nb6 {[%clk 0:03:02]} 5. exd6 {[%clk 0:02:51]}  exd6 {[%clk 0:03:03]} 6. Nf3 {[%clk 0:02:51]}  Be7 {[%clk 0:03:03]} 7. Nc3 {[%clk 0:02:51]}  Bg4 {[%clk 0:03:03]} 8. Be2 {[%clk 0:02:50]}  O-O {[%clk 0:03:04]} 9. O-O {[%clk 0:02:50]}  Re8 {[%clk 0:03:04]} 10. h3 {[%clk 0:02:48]}  Bh5 {[%clk 0:03:04]} 11. b3 {[%clk 0:02:47]}  Nc6 {[%clk 0:03:04]} 12. Be3 {[%clk 0:02:47]}  Bf6 {[%clk 0:03:04]} 13. Qd2 {[%clk 0:02:43]}  d5 {[%clk 0:03:01]} 14. c5 {[%clk 0:02:43]}  Nc8 {[%clk 0:03:01]} 15. b4 {[%clk 0:02:43]}  h6 {[%clk 0:02:52]} 16. b5 {[%clk 0:02:40]}  N6e7 {[%clk 0:02:39]} 17. a4 {[%clk 0:02:18]}  c6 {[%clk 0:02:27]} 18. Rab1 {[%clk 0:02:14]}  Bg6 {[%clk 0:02:24]} 19. Bd3 {[%clk 0:02:13]}  Nf5 {[%clk 0:02:13]} 20. bxc6 {[%clk 0:01:36]}  bxc6 {[%clk 0:02:14]} 21. Rb7 {[%clk 0:01:36]}  Nce7 {[%clk 0:02:08]} 22. Ne2 {[%clk 0:01:19]}  Qc8 {[%clk 0:01:59]} 23. Rfb1 {[%clk 0:01:16]}  Nxe3 {[%clk 0:01:59]} 24. Qxe3 {[%clk 0:01:09]}  Be4 {[%clk 0:01:39]} 25. Bxe4 {[%clk 0:01:01]}  dxe4 {[%clk 0:01:40]} 26. Qxe4 {[%clk 0:00:59]}  Nd5 {[%clk 0:01:41]} 27. Qd3 {[%clk 0:00:49]}  a5 {[%clk 0:01:38]} 28. R7b2 {[%clk 0:00:39]}  Qe6 {[%clk 0:01:35]} 29. Nc3 {[%clk 0:00:36]}  Nf4 {[%clk 0:01:31]} 30. Qd2 {[%clk 0:00:32]}  Qf5 {[%clk 0:01:30]} 31. Re1 {[%clk 0:00:16]}  Rxe1+ {[%clk 0:01:19]} 32. Qxe1 {[%clk 0:00:16]}  Nxh3+ {[%clk 0:01:15]} 33. Kh2 {[%clk 0:00:08]}  Nf4 {[%clk 0:01:15]} 34. Qe4 {[%clk 0:00:08]}  Qg4 {[%clk 0:01:09]} 35. Ne5 {[%clk 0:00:03]}  Bxe5 {[%clk 0:01:03]} 36. dxe5 {[%clk 0:00:03]}  Rd8 {[%clk 0:00:58]} 37. g3 {[%clk 0:00:00]}  Rd4 {[%clk 0:00:45]} 0-1

[Event "January 9 Late 2024"]
[Site "https://www.chess.com"]
[Date "2024.01.09"]
[Round "5"]
[White "Olenik Campa, Rudi"]
[Black "Erigaisi Arjun"]
[Result "0-1"]
[Board "64"]
[TimeControl "180+1"]
[WhiteFideId "14633264"]
[BlackFideId "35009192"]
[WhiteElo "2593"]
[BlackElo "3014"]
[WhiteTeam "SLO"]
[BlackTeam "IND"]
[WhiteClock "0:00:00"]
[BlackClock "0:00:16"]

1. e4 {[%clk 0:03:00]}  c6 {[%clk 0:03:00]} 2. Nc3 {[%clk 0:02:58]}  g6 {[%clk 0:03:01]} 3. d4 {[%clk 0:02:53]}  Bg7 {[%clk 0:03:02]} 4. Nf3 {[%clk 0:02:53]}  d5 {[%clk 0:03:02]} 5. h3 {[%clk 0:02:53]}  Nf6 {[%clk 0:02:59]} 6. Bd3 {[%clk 0:02:47]}  dxe4 {[%clk 0:02:56]} 7. Nxe4 {[%clk 0:02:47]}  Bf5 {[%clk 0:02:56]} 8. Qe2 {[%clk 0:02:43]}  O-O {[%clk 0:02:49]} 9. O-O {[%clk 0:02:43]}  Bxe4 {[%clk 0:02:46]} 10. Bxe4 {[%clk 0:02:42]}  Nbd7 {[%clk 0:02:47]} 11. c4 {[%clk 0:02:36]}  Re8 {[%clk 0:02:46]} 12. Rd1 {[%clk 0:02:30]}  Qc7 {[%clk 0:02:42]} 13. Bd3 {[%clk 0:02:21]}  e5 {[%clk 0:02:39]} 14. dxe5 {[%clk 0:02:19]}  Nxe5 {[%clk 0:02:40]} 15. Nxe5 {[%clk 0:02:11]}  Rxe5 {[%clk 0:02:41]} 16. Qf3 {[%clk 0:02:04]}  Qb6 {[%clk 0:02:34]} 17. Bf4 {[%clk 0:01:57]}  Re6 {[%clk 0:02:32]} 18. Rab1 {[%clk 0:01:54]}  a5 {[%clk 0:02:28]} 19. b3 {[%clk 0:01:50]}  Rae8 {[%clk 0:02:26]} 20. Be3 {[%clk 0:01:43]}  Rxe3 {[%clk 0:02:23]} 21. fxe3 {[%clk 0:01:37]}  Rxe3 {[%clk 0:02:24]} 22. Qf2 {[%clk 0:01:36]}  Ng4 {[%clk 0:02:11]} 23. hxg4 {[%clk 0:01:21]}  Bd4 {[%clk 0:02:11]} 24. Kf1 {[%clk 0:01:21]}  Rxd3 {[%clk 0:02:03]} 25. Qf4 {[%clk 0:01:09]}  Rxd1+ {[%clk 0:01:55]} 26. Rxd1 {[%clk 0:01:10]}  c5 {[%clk 0:01:53]} 27. Re1 {[%clk 0:01:09]}  Qd8 {[%clk 0:01:50]} 28. g5 {[%clk 0:00:51]}  Kg7 {[%clk 0:01:43]} 29. Rd1 {[%clk 0:00:42]}  Qe7 {[%clk 0:01:40]} 30. Rd3 {[%clk 0:00:40]}  Qe6 {[%clk 0:01:20]} 31. Rh3 {[%clk 0:00:36]}  b6 {[%clk 0:01:17]} 32. Rf3 {[%clk 0:00:28]}  Qe7 {[%clk 0:01:11]} 33. Rh3 {[%clk 0:00:27]}  Qd7 {[%clk 0:01:07]} 34. Rf3 {[%clk 0:00:27]}  a4 {[%clk 0:01:05]} 35. Rh3 {[%clk 0:00:22]}  axb3 {[%clk 0:01:03]} 36. axb3 {[%clk 0:00:22]}  Qa7 {[%clk 0:00:59]} 37. Qc1 {[%clk 0:00:11]}  Qa2 {[%clk 0:00:58]} 38. Rf3 {[%clk 0:00:11]}  Kg8 {[%clk 0:00:52]} 39. Qd1 {[%clk 0:00:09]}  Qa8 {[%clk 0:00:41]} 40. Qe1 {[%clk 0:00:09]}  Qd8 {[%clk 0:00:39]} 41. Qd2 {[%clk 0:00:08]}  Qe7 {[%clk 0:00:38]} 42. Qf4 {[%clk 0:00:08]}  Qa7 {[%clk 0:00:37]} 43. Qc1 {[%clk 0:00:07]}  Bg7 {[%clk 0:00:36]} 44. Qe1 {[%clk 0:00:07]}  Bf8 {[%clk 0:00:36]} 45. Qd1 {[%clk 0:00:06]}  Be7 {[%clk 0:00:35]} 46. Qd5 {[%clk 0:00:05]}  Bf8 {[%clk 0:00:34]} 47. Qd1 {[%clk 0:00:05]}  Qe7 {[%clk 0:00:33]} 48. Qd5 {[%clk 0:00:04]}  Qc7 {[%clk 0:00:33]} 49. Kf2 {[%clk 0:00:04]}  Bg7 {[%clk 0:00:31]} 50. Kf1 {[%clk 0:00:04]}  Be5 {[%clk 0:00:30]} 51. Qe4 {[%clk 0:00:04]}  Kg7 {[%clk 0:00:27]} 52. Qd5 {[%clk 0:00:04]}  Bd4 {[%clk 0:00:25]} 53. Qe4 {[%clk 0:00:04]}  Qa7 {[%clk 0:00:22]} 54. Qb1 {[%clk 0:00:04]}  Qe7 {[%clk 0:00:21]} 55. Qd1 {[%clk 0:00:04]}  Qxg5 {[%clk 0:00:18]} 56. Qe2 {[%clk 0:00:04]}  h5 {[%clk 0:00:17]} 57. Qe8 {[%clk 0:00:01]}  Qc1+ {[%clk 0:00:15]} 58. Qe1 {[%clk 0:00:00]}  Qc2 {[%clk 0:00:16]} 0-1

[Event "January 9 Late 2024"]
[Site "https://www.chess.com"]
[Date "2024.01.09"]
[Round "5"]
[White "Smirnov, Anton"]
[Black "Banerjee, Supratit"]
[Result "1-0"]
[Board "65"]
[TimeControl "180+1"]
[WhiteFideId "3208923"]
[BlackFideId "2410079"]
[WhiteElo "2923"]
[BlackElo "2584"]
[WhiteTeam "AUS"]
[BlackTeam "SCO"]
[WhiteClock "0:01:48"]
[BlackClock "0:01:06"]

1. e4 {[%clk 0:03:00]}  e6 {[%clk 0:02:59]} 2. d4 {[%clk 0:03:00]}  d5 {[%clk 0:03:00]} 3. Nc3 {[%clk 0:03:00]}  dxe4 {[%clk 0:03:00]} 4. Nxe4 {[%clk 0:03:00]}  Nd7 {[%clk 0:03:00]} 5. Nf3 {[%clk 0:02:58]}  Ngf6 {[%clk 0:03:00]} 6. Bg5 {[%clk 0:02:56]}  Be7 {[%clk 0:03:00]} 7. Nxf6+ {[%clk 0:02:56]}  Nxf6 {[%clk 0:03:00]} 8. c3 {[%clk 0:02:55]}  O-O {[%clk 0:02:59]} 9. Bd3 {[%clk 0:02:55]}  h6 {[%clk 0:02:59]} 10. Bh4 {[%clk 0:02:55]}  Nd5 {[%clk 0:02:58]} 11. Bxe7 {[%clk 0:02:53]}  Qxe7 {[%clk 0:02:58]} 12. O-O {[%clk 0:02:53]}  b6 {[%clk 0:02:58]} 13. Ne5 {[%clk 0:02:52]}  Bb7 {[%clk 0:02:57]} 14. Qg4 {[%clk 0:02:53]}  f5 {[%clk 0:02:51]} 15. Qg3 {[%clk 0:02:47]}  Rf6 {[%clk 0:02:48]} 16. Rfe1 {[%clk 0:02:46]}  Rd8 {[%clk 0:02:43]} 17. Bc4 {[%clk 0:02:41]}  c5 {[%clk 0:02:36]} 18. Rad1 {[%clk 0:02:33]}  f4 {[%clk 0:02:25]} 19. Qh4 {[%clk 0:02:31]}  Qf8 {[%clk 0:02:00]} 20. Ng4 {[%clk 0:02:11]}  Rg6 {[%clk 0:01:52]} 21. Bd3 {[%clk 0:02:10]}  Rg5 {[%clk 0:01:48]} 22. Rxe6 {[%clk 0:02:09]}  cxd4 {[%clk 0:01:43]} 23. Rxh6 {[%clk 0:02:01]}  gxh6 {[%clk 0:01:22]} 24. Nxh6+ {[%clk 0:02:00]}  Kh8 {[%clk 0:01:21]} 25. Nf5+ {[%clk 0:01:55]}  Kg8 {[%clk 0:01:15]} 26. Qxg5+ {[%clk 0:01:53]}  Kh8 {[%clk 0:01:14]} 27. Qh5+ {[%clk 0:01:49]}  Kg8 {[%clk 0:01:12]} 28. Nh6+ {[%clk 0:01:48]}  Kh8 {[%clk 0:01:06]} 29. Nf7+ {[%clk 0:01:48]}  Kg7 {[%clk 0:01:06]} 30. Qg6# {[%clk 0:01:48]} 1-0